[Event "SUI-ch Bundesturnier TP-1 2022"]
[Site "Payerne"]
[Date "2022.05.26"]
[Round "1.7"]
[White "Bondar, Yevgen"]
[Black "Deveci, Sinan"]
[Result "0-1"]
[ECO "C55"]
[WhiteElo "2327"]
[BlackElo "1931"]
[Annotator "TA"]
[PlyCount "62"]
[EventDate "2022.05.26"]
[EventType "swiss"]
[EventCountry "SUI"]
[SourceTitle "playchess.com"]
[Source "ChessBase"]
[SourceQuality "1"]
[TimeControl "5400+30"]

{[%evp 10,62,39,27,35,8,11,12,20,0,11,10,17,15,8,0,0,-13,0,0,0,0,-6,-4,-6,-10,16,-19,105,-178,-172,-162,-173,-490,-468,-760,-754,-755,-758,-755,-745,-709,-696,-1155,-1108,-953,-840,-1108,-1102,-1077,-1058,-1375,-1352,-1423,-1391]} 1. e4 {[%emt 0:00:03]} e5 {[%emt 0:00:08]} 2. Nf3 {[%emt 0:00:05]} Nc6 {[%emt 0:00:05]} 3. Bc4 {[%emt 0:00:05]} Nf6 {[%emt 0:00:06]} 4. d3 {[%emt 0:00:08]} Be7 {[%emt 0:00:06]} 5. c3 {[%emt 0:00:46]} O-O {[%emt 0:00:30]} 6. Nbd2 {[%emt 0:01:03]} d6 {[%emt 0:01:40] C55: Two Knights: 4 d3, 4 d4 exd4 5 e5 and Max Lange Attack.} 7. Bb3 {[%emt 0:02:36]} Na5 {[%emt 0:05:19]} 8. Bc2 {[%emt 0:00:47]} c5 {[%emt 0:00:02] The position is equal.} 9. Nf1 {[%emt 0:02:12]} h6 {[%emt 0:00:21]} 10. Ne3 {[%emt 0:03:46] [#]} a6 $146 {[%emt 0:04:39]} ({Predecessor:} 10... Be6 11. O-O Nc6 12. b3 b5 13. d4 cxd4 14. cxd4 exd4 15. Nxd4 Qb6 16. Bb2 Nb4 {0-1 (32) Mehlen,T (1865)-Haftmann,R (1718) Hofheim 2019}) 11. h3 {[%emt 0:09:34]} Nc6 {[%emt 0:04:14]} 12. g4 {[%emt 0:03:30]} d5 {[%emt 0:07:36]} 13. Qe2 {[%emt 0:00:48]} b5 $36 {[%emt 0:11:56][%mdl 2048] Black has the initiative.} 14. Rg1 {[%emt 0:12:49]} d4 {[%emt 0:07:47]} 15. Nf5 {[%emt 0:01:55]} Bxf5 {[%emt 0:00:34]} 16. gxf5 {[%emt 0:01:22]} Kh8 {[%emt 0:03:32][%cal Bg8h8,Bh8g7,Bg7h7][%mdl 32]} 17. Bd2 {[%emt 0:16:17]} Nd7 {[%emt 0:10:50]} 18. O-O-O {[%emt 0:08:43]} Nb6 {[%emt 0:02:56] [#]} (18... dxc3 $11 {remains equal.} 19. bxc3 a5) 19. Rxg7 $2 {[%emt 0:14:36][%mdl 8192] This costs White the game.} Kxg7 $19 {[%emt 0:01:18]} 20. Rg1+ {[%emt 0:00:11]} Kh7 {[%emt 0:14:12]} 21. Ng5+ $2 {[%emt 0:02:18]} (21. cxd4 {is tougher.} cxd4 22. Bb3) 21... Bxg5 {[%emt 0:02:38] Black is clearly winning.} 22. Bxg5 {[%emt 0:00:21]} (22. Rxg5 $142 hxg5 23. Qh5+ Kg7 24. Bxg5) 22... Rg8 {[%emt 0:12:38]} 23. Bxd8 {[%emt 0:08:11]} Rxg1+ {[%emt 0:00:07]} 24. Kd2 {[%emt 0:00:28]} Rxd8 {[%emt 0:00:06]} 25. Qh5 {[%emt 0:00:31]} Kg7 {[%emt 0:01:27]} 26. Bd1 {[%emt 0:01:49]} c4 {[%emt 0:03:56][%cal Bc5c4,Bc4d3][%mdl 32] [#] White must now prevent ...dxc3+.} 27. f6+ {[%emt 0:01:27]} Kxf6 {[%emt 0:00:39]} 28. Qxh6+ {[%emt 0:00:49]} Rg6 {[%emt 0:01:01]} 29. Qh4+ {[%emt 0:00:12]} Kg7 {[%emt 0:00:09] Threatens to win with ...dxc3+.} 30. Bg4 {[%emt 0:00:37]} dxc3+ {[%emt 0:01:00]} 31. bxc3 {[%emt 0:00:08]} cxd3 {[%emt 0:01:50] Weighted Error Value: White=1.00/Black=0.16 (very precise)} 0-1

[Event "SUI-ch Bundesturnier TP-1 2022"]
[Site "Payerne"]
[Date "2022.05.26"]
[Round "1.8"]
[White "Kostov, Kiril"]
[Black "Colmenares, Aurelio"]
[Result "1/2-1/2"]
[ECO "B68"]
[WhiteElo "2068"]
[BlackElo "2318"]
[Annotator "TA"]
[PlyCount "75"]
[EventDate "2022.05.26"]
[EventType "swiss"]
[EventCountry "SUI"]
[SourceTitle "playchess.com"]
[Source "ChessBase"]
[SourceQuality "1"]
[TimeControl "5400+30"]

{[%evp 20,75,38,45,21,-41,0,-1,108,107,104,105,79,110,187,183,632,625,614,381,556,538,544,525,1022,1004,1032,458,404,-47,352,0,0,0,0,0,0,-217,-103,-77,-156,-516,-497,-485,0,-286,0,0,0,0,0,0,0,0,0,0,0,0]} 1. e4 {[%emt 0:00:03]} c5 {[%emt 0:00:05]} 2. Nf3 {[%emt 0:00:07]} Nc6 {[%emt 0:00:09]} 3. d4 {[%emt 0:00:27]} cxd4 {[%emt 0:00:05]} 4. Nxd4 {[%emt 0:00:08]} Nf6 {[%emt 0:00:09]} 5. Nc3 {[%emt 0:00:15]} d6 {[%emt 0:00:05]} 6. Bg5 {[%emt 0:00:33]} e6 {[%emt 0:00:09]} 7. f4 {[%emt 0:03:40]} Be7 {[%emt 0:02:28]} 8. Qd2 {[%emt 0:11:17]} a6 {[%emt 0:00:25]} 9. O-O-O {[%emt 0:00:49]} Bd7 {[%emt 0:00:20]} 10. Nf3 {[%emt 0:09:21]} b5 {[%emt 0:01:26]} 11. e5 {[%emt 0:29:40]} b4 {[%emt 0:04:18] B68: Sicilian: Richter-Rauzer: 7...a6 8 0-0-0 Bd7 9 f4 Be7 .} 12. Ne2 {[%emt 0:09:36] [#]} (12. exf6 $11 bxc3 13. Qxc3 gxf6 14. Bh4) 12... Ne4 $146 {[%emt 0:45:27]} ({Predecessor:} 12... dxe5 13. fxe5 Nd5 14. h4 h6 15. Bxe7 Qxe7 16. Ned4 Nxd4 17. Qxd4 O-O 18. Bd3 Rfc8 19. Rh3 {1-0 (34) Haussernot,C (2155)-Degardin,S (2291) Chess.com INT 2022}) 13. Bxe7 {[%emt 0:01:30]} Qa5 {[%emt 0:05:16]} (13... Qxe7 $11 14. Qe1 d5) 14. Qe3 $1 $16 {[%emt 0:05:30]} d5 {[%emt 0:04:21]} 15. Bd6 {[%emt 0:04:08] And now Kb1 would win.} Qxa2 {[%emt 0:03:23][%cal Ra2a1]} 16. Nd2 {[%emt 0:00:33]} Na5 {[%emt 0:09:43]} (16... Nxd6 $16 17. exd6 a5) 17. Nd4 $18 {[%emt 0:02:25]} (17. Nxe4 Nc4 18. Nf6+ gxf6) 17... Rc8 $2 {[%emt 0:04:02]} (17... Nxd6 18. exd6 O-O) 18. Nxe4 {[%emt 0:03:33]} dxe4 {[%emt 0:06:28]} 19. Qg3 {[%emt 0:06:08]} Ba4 {[%emt 0:09:40]} (19... Qa1+ $2 20. Kd2 Qxb2 21. Qxg7 $1 Qxd4+ 22. Ke1 Qc3+ 23. Kf2 e3+ 24. Kg1 $18) (19... e3 $142 20. Qxe3 b3) 20. Kd2 {[%emt 0:04:15]} Qxb2 {[%emt 0:00:22][%cal Ra4c2]} 21. Ke1 {[%emt 0:01:01]} Bxc2 {[%emt 0:02:00]} 22. Qg5 {[%emt 0:02:42][%csl Gd6][%cal Rg5e7]} Rc7 {[%emt 0:00:34] [#] Prevents Qe7+.} 23. Bxc7 {[%emt 0:00:50]} (23. Bxa6 $142 $1 {Intending Bb5+ and mate.} Bd3 24. Bb5+ Bxb5 25. Nxb5 (25. Bxc7 Qc3+ 26. Kf2 e3+ 27. Kg3 e2+ 28. Kh4 O-O $16)) 23... O-O {[%emt 0:00:06]} 24. Bd6 $2 {[%emt 0:02:24]} (24. Bxa5 Qc3+ 25. Kf2 (25. Rd2 $2 e3 $19) 25... e3+ 26. Kg1 Bxd1 $17) (24. Nxc2 $18 Qc3+ 25. Rd2) 24... Bxd1 $4 {[%emt 0:00:44][%mdl 8192]} (24... Qc3+ $15 {stays ahead.} 25. Kf2 (25. Rd2 $2 e3 $19) 25... Bxd1) 25. Bxf8 $2 {[%emt 0:00:14] Chess con chili.} ({Only move:} 25. Nxe6 $1 $18 fxe6 26. Bxf8 Qc3+ 27. Kxd1 Qd4+ 28. Ke2 Kxf8 29. f5) 25... Qc3+ $11 {[%emt 0:00:24]} 26. Kxd1 {[%emt 0:00:21][%csl Gf8][%cal Rg5g7]} Qxd4+ {[%emt 0:00:01]} 27. Ke1 {[%emt 0:00:36][%csl Gf8][%cal Rg5g7]} Kxf8 {[%emt 0:00:21]} 28. Qg3 $2 {[%emt 0:00:44] [#]} (28. Bxa6 $11 {and White stays safe.} Nc6 29. Bb7 (29. Bb5 $2 e3 $19)) 28... e3 {[%emt 0:00:18]} (28... g6 $1 $19 {Strongly threatening ...b3.} 29. Qf2 Qa1+ 30. Ke2 b3) 29. Ke2 $17 {[%emt 0:01:07]} Nc4 {[%emt 0:00:25][%mdl 1024] Black has strong compensation.} 30. Kf3 $2 {[%emt 0:00:27]} (30. Qe1 $17 {was the crucial defense.} Nd2 31. g3 (31. Qc1 g5 $17)) 30... Nd2+ $19 {[%emt 0:01:40]} ({Less strong is} 30... e2 31. Kxe2 Ke7 32. Qd3 (32. Kf3 Nd2+ 33. Ke2 Nc4 $14) 32... Qxf4 33. g3 Qxe5+ 34. Kf3 $16) 31. Kg4 {[%emt 0:00:02]} Qe4 $2 {[%emt 0:00:20]} (31... Ne4 $19 32. Qe1 g5) 32. Qh4 {[%emt 0:01:00][%mdl 8192]} (32. Bxa6 $11 b3 33. Kh3) 32... f5+ $2 {[%emt 0:00:34]} ({Better is} 32... Qf5+ $19 33. Kg3 g5) 33. exf6 {[%emt 0:00:23] The position is equal.} Nxf1 {[%emt 0:00:33]} 34. fxg7+ {[%emt 0:00:37]} Kxg7 {[%emt 0:00:14]} 35. Qe7+ {[%emt 0:00:24]} Kg8 {[%emt 0:00:25] aiming for ...Qg6+.} 36. Qe8+ {[%emt 0:00:35]} ({Of course not} 36. Qg5+ Kf7 37. Qh5+ Ke7 38. Qc5+ Kd7 39. Qa7+ Ke8 40. Rxf1 Qxg2+ 41. Kh5 Qxf1 $17) 36... Kg7 {[%emt 0:00:08]} 37. Qe7+ {[%emt 0:00:36]} Kg6 {[%emt 0:00:30] ( -> ...h5+)} 38. Qe8+ {[%emt 0:00:20] Never resign too early!  Weighted Error Value: White=0.97/Black=1.03} 1/2-1/2

[Event "SUI-ch Bundesturnier TP-1 2022"]
[Site "Payerne"]
[Date "2022.05.26"]
[Round "1.9"]
[White "Sutter, Oliver"]
[Black "Ruchat, Blaise"]
[Result "1-0"]
[ECO "A68"]
[WhiteElo "2316"]
[BlackElo "1883"]
[Annotator "TA"]
[PlyCount "51"]
[EventDate "2022.05.26"]
[EventType "swiss"]
[EventCountry "SUI"]
[SourceTitle "playchess.com"]
[Source "ChessBase"]
[SourceQuality "1"]
[TimeControl "5400+30"]

{[%evp 18,51,0,8,74,66,186,178,204,206,223,181,323,289,402,339,345,331,359,304,423,423,878,872,873,869,824,820,788,779,661,346,359,328,351,321]} 1. d4 {[%emt 0:00:03]} Nf6 {[%emt 0:00:07]} 2. c4 {[%emt 0:00:03]} g6 {[%emt 0:00:04]} 3. Nc3 {[%emt 0:00:05]} Bg7 {[%emt 0:00:06]} 4. e4 {[%emt 0:00:04]} d6 {[%emt 0:00:03]} 5. f4 {[%emt 0:00:03]} O-O {[%emt 0:00:06]} 6. Nf3 {[%emt 0:00:03]} c5 {[%emt 0:00:10]} 7. d5 {[%emt 0:00:05]} e6 {[%emt 0:00:05]} 8. Be2 {[%emt 0:00:06]} exd5 {[%emt 0:00:27]} 9. cxd5 {[%emt 0:00:04]} Bg4 {[%emt 0:01:48]} 10. O-O {[%emt 0:00:51]} a6 {[%emt 0:03:19] A68: Modern Benoni: Four Pawns Attack without 9...Re8.} (10... Re8 $11) 11. e5 {[%emt 0:00:40]} Nfd7 {[%emt 0:06:03] [#]} (11... dxe5 $1 $14 12. fxe5 Nfd7) 12. e6 $1 $18 {[%emt 0:05:52]} (12. exd6 Re8 $11) 12... fxe6 {[%emt 0:22:48] [#] White is clearly better.} 13. Ng5 $1 {[%emt 0:13:54]} ({Less strong is} 13. dxe6 Nf6 $14) 13... Bxe2 {[%emt 0:34:47]} 14. Qxe2 {[%emt 0:08:58] [#]} e5 $146 {[%emt 0:03:56]} (14... Qe7 {keeps fighting.}) ({Predecessor:} 14... exd5 15. Qe6+ Kh8 16. Nxd5 Nf6 17. Qh3 Nbd7 18. f5 gxf5 19. Ne6 Nxd5 20. Nxd8 Raxd8 21. Bg5 Rde8 22. Rxf5 Bxb2 23. Rxf8+ Nxf8 24. Rd1 Bd4+ 25. Rxd4 cxd4 26. Qf5 {1-0 (26) Negro,R (2164)-Bednarich,J (1930) Asiago 1995}) 15. Ne6 {[%emt 0:01:47][%csl LRd8,LRf8]} Qh4 {[%emt 0:07:56]} 16. g3 {[%emt 0:05:21]} ({Don't do} 16. Nxf8 Nxf8 17. g3 Qh5 18. Qxh5 gxh5 19. fxe5 Bxe5 $18) 16... Qe7 {[%emt 0:01:21]} 17. Nxf8 {[%emt 0:01:12]} Nxf8 {[%emt 0:01:16]} 18. f5 {[%emt 0:02:49] Ne4 is the strong threat.} Nbd7 {[%emt 0:04:21]} 19. Ne4 {[%emt 0:00:36]} b5 {[%emt 0:07:28]} (19... g5 $142 20. Bxg5 Nf6 21. Bxf6 Bxf6) 20. Bg5 {[%emt 0:02:13]} Bf6 {[%emt 0:01:25]} 21. Nxf6+ {[%emt 0:02:12]} Nxf6 {[%emt 0:00:04]} 22. fxg6 {[%emt 0:00:08]} N8d7 {[%emt 0:00:35]} 23. gxh7+ {[%emt 0:01:04]} Kxh7 {[%emt 0:03:23]} 24. Rxf6 Nxf6 25. Rf1 {[%emt 0:00:02]} Rf8 {[%emt 0:00:01]} 26. Qf2 {[%emt 0:00:02] Black got outplayed after the opening.  Weighted Error Value: White=0.30/Black=0.63} 1-0

[Event "SUI-ch Bundesturnier TP-1 2022"]
[Site "Payerne"]
[Date "2022.05.26"]
[Round "1.10"]
[White "Bonferroni, Thierry"]
[Black "Rohrer, Christophe"]
[Result "0-1"]
[ECO "E14"]
[WhiteElo "1950"]
[BlackElo "2285"]
[Annotator "TA"]
[PlyCount "40"]
[EventDate "2022.05.26"]
[EventType "swiss"]
[EventCountry "SUI"]
[SourceTitle "playchess.com"]
[Source "ChessBase"]
[SourceQuality "1"]
[TimeControl "5400+30"]

{[%evp 18,40,12,0,4,-10,-10,-30,13,12,0,-25,-25,-31,47,37,54,-292,-266,-877,-886,-1889,-1883,-1861,-1833]} 1. d4 {[%emt 0:00:07]} Nf6 {[%emt 0:00:07]} 2. c4 {[%emt 0:00:09]} e6 {[%emt 0:00:06]} 3. Nf3 {[%emt 0:00:04]} d5 {[%emt 0:00:10]} 4. e3 {[%emt 0:00:13]} b6 {[%emt 0:01:14]} 5. Nbd2 {[%emt 0:00:52]} Bb7 {[%emt 0:01:02]} 6. Bd3 {[%emt 0:00:08]} Nbd7 {[%emt 0:02:54]} 7. b3 {[%emt 0:00:18]} Bd6 {[%emt 0:00:50]} 8. Bb2 {[%emt 0:00:22]} O-O {[%emt 0:04:35]} 9. O-O {[%emt 0:00:07]} Ne4 {[%emt 0:04:18]} 10. Rc1 {[%emt 0:07:01]} f5 $1 {[%emt 0:08:54] 10...f5 is better than 10...Qe7. E14: Queen's Indian: Classical Variation (4 e3).} 11. Ne5 {[%emt 0:01:30]} Nxe5 {[%emt 0:13:40]} 12. dxe5 {[%emt 0:00:29]} Bb4 {[%emt 0:02:07] Black has an edge.} 13. Nf3 {[%emt 0:07:13][%cal Bd2f3,Bf3d4,Bd4b5][%mdl 32]} Qe7 {[%emt 0:08:17] [#]} 14. Nd4 $146 {[%emt 0:06:28][%cal Oa2a3]} ({Predecessor:} 14. cxd5 Bxd5 15. Qc2 Nc5 16. Be2 a5 17. Rfd1 f4 18. Rxd5 exd5 19. a3 fxe3 20. fxe3 {0-1 (31) Sevian,S (2660)-Tabatabaei,M (2629) Chess.com INT 2020}) 14... c5 {[%emt 0:04:28]} 15. Nb5 {[%emt 0:01:05]} Nd2 {[%emt 0:05:12]} (15... a6 $15 16. Nd6 Nxd6 17. exd6 Qxd6) 16. a3 $1 $14 {[%emt 0:09:36]} Ba5 {[%emt 0:12:49]} 17. Re1 $2 {[%emt 0:02:31][%mdl 8192] Now White is beyond hope.} (17. b4 $1 $14 {stays ahead.} Nxf1 18. bxa5) 17... dxc4 $19 {[%emt 0:00:43]} 18. bxc4 $2 {[%emt 0:01:07]} (18. Bxc4 Qg5 19. Bxe6+ Kh8 20. e4 Nxe4 21. Rxe4 fxe4 22. Nd6) 18... Qg5 {[%emt 0:00:39][%csl Gb7][%cal Rg5g2] [#] Black is clearly winning.} 19. e4 {[%emt 0:01:15]} fxe4 {[%emt 0:00:29]} 20. Bf1 {[%emt 0:01:27]} Nf3+ {[%emt 0:01:41] Weighted Error Value: White=1.15/Black=0.20 (precise)} 0-1

[Event "SUI-ch Bundesturnier TP-1 2022"]
[Site "Payerne"]
[Date "2022.05.26"]
[Round "2.1"]
[White "Menzi, Jonas"]
[Black "Bauer, Christian"]
[Result "0-1"]
[ECO "B03"]
[WhiteElo "1965"]
[BlackElo "2596"]
[Annotator "TA"]
[PlyCount "80"]
[EventDate "2022.05.26"]
[EventType "swiss"]
[EventCountry "SUI"]
[SourceTitle "playchess.com"]
[Source "ChessBase"]
[SourceQuality "1"]
[TimeControl "5400+30"]

{[%evp 17,80,34,34,38,40,29,30,25,0,0,-10,-18,-12,-16,-6,-19,0,-14,-22,-27,-33,-29,-8,-2,-12,-10,-8,-15,9,-112,-131,-123,-115,-155,-96,-81,-85,-121,-35,-256,-251,-439,-392,-401,-362,-386,-305,-281,-289,-535,-522,-497,-510,-602,-607,-596,-584,-583,-576,-522,-312,-4774,-3883,-1208,-1164]} 1. e4 {[%emt 0:04:43][%cal Be2e4,Be4e5][%mdl 32]} Nf6 {[%emt 0:01:30]} 2. e5 {[%emt 0:00:23]} Nd5 {[%emt 0:00:02]} 3. d4 {[%emt 0:00:21]} d6 {[%emt 0:00:05]} 4. c4 {[%emt 0:00:13]} Nb6 {[%emt 0:00:02]} 5. exd6 {[%emt 0:00:15]} cxd6 {[%emt 0:00:47]} 6. Nc3 {[%emt 0:00:10]} g6 {[%emt 0:00:04]} 7. Be3 {[%emt 0:00:11]} Bg7 {[%emt 0:00:05]} 8. Rc1 {[%emt 0:00:24]} O-O {[%emt 0:00:07]} 9. b3 {[%emt 0:00:53]} Bf5 {[%emt 0:02:54]} 10. Be2 {[%emt 0:07:28] B03: Alekhine's Defence: Four Pawns Attack.} e5 {[%emt 0:05:32]} 11. dxe5 {[%emt 0:04:30]} dxe5 {[%emt 0:00:02]} 12. Qxd8 {[%emt 0:00:42] White has an edge.} Rxd8 {[%emt 0:00:01]} 13. c5 {[%emt 0:05:18]} Nc8 {[%emt 0:07:09]} 14. Nf3 {[%emt 0:07:06]} Nc6 {[%emt 0:02:40]} 15. O-O {[%emt 0:00:33]} N8e7 {[%emt 0:12:27] [#]} 16. Bc4 $146 {[%emt 0:10:58]} ({Predecessor:} 16. Rfd1 Nd4 17. Bxd4 exd4 18. Nb5 d3 19. Bf1 Nc8 20. Rc4 a6 21. Nbd4 b5 22. cxb6 Nxb6 {0-1 (32) Jakubiec,E (2184)-Chetverik,M (2258) Krakow 2014}) 16... Na5 {[%emt 0:06:44]} 17. Be2 {[%emt 0:03:15]} Nec6 {[%emt 0:10:53]} 18. Rfd1 {[%emt 0:09:47]} Nd4 {[%emt 0:17:48]} 19. Bf1 {[%emt 0:09:44]} Nac6 {[%emt 0:03:24][%cal Ba5c6,Bc6b4,Bb4d3][%mdl 32]} 20. Nd2 {[%emt 0:02:41]} Bc2 {[%emt 0:05:27]} 21. Re1 {[%emt 0:03:12]} Nb4 $36 {[%emt 0:00:11][%mdl 2048] Black is pushing.} 22. Nc4 {[%emt 0:11:51]} Rd7 {[%emt 0:07:43]} 23. a3 {[%emt 0:07:45]} (23. Nd6 $11 {remains equal.}) 23... Nd3 $17 {[%emt 0:01:23]} 24. Bxd3 {[%emt 0:00:00]} Bxd3 {[%emt 0:00:01]} 25. Nd2 {[%emt 0:03:43]} Nc2 {[%emt 0:02:43] Black is much more active.} (25... f5 $142 26. g3 Nc2) 26. Red1 {[%emt 0:00:51]} Rad8 {[%emt 0:02:13]} 27. a4 {[%emt 0:01:32]} h6 {[%emt 0:04:00]} (27... Bf5 $17 28. Nc4 Nd4 29. Bxd4 exd4) 28. Nf1 {[%emt 0:03:02] [#] White does not recover from this.} (28. Nde4 $15) 28... e4 $19 {[%emt 0:00:47]} 29. Bd2 {[%emt 0:02:13]} (29. Rd2 {was necessary.} Bxc3 30. Rdxc2 Bxc2 31. Rxc2) 29... Nd4 {[%emt 0:00:36]} 30. b4 {[%emt 0:01:04]} Nb3 {[%emt 0:00:17]} 31. Be3 {[%emt 0:00:26]} Nxc1 {[%emt 0:01:44]} 32. Rxc1 {[%emt 0:00:11]} f5 {[%emt 0:01:01] aiming for ...g5.} 33. Nd2 $2 {[%emt 0:01:02] [#]} (33. h4) 33... g5 {[%emt 0:00:41]} 34. g3 {[%emt 0:00:05]} Be5 {[%emt 0:01:58]} 35. f4 {[%emt 0:00:38]} gxf4 {[%emt 0:01:48]} 36. gxf4 {[%emt 0:00:02]} Bd4 {[%emt 0:01:00]} 37. Kf2 {[%emt 0:00:26]} Bxe3+ {[%emt 0:00:26]} 38. Kxe3 {[%emt 0:00:02]} Ba6 {[%emt 0:00:35]} 39. Ncb1 {[%emt 0:01:43]} (39. Ndxe4 Rd3+ 40. Kf2 fxe4 41. b5) 39... Rd3+ {[%emt 0:00:06]} 40. Kf2 {[%emt 0:00:04]} e3+ {[%emt 0:00:05] Weighted Error Value: White=0.60/Black=0.22 (precise)} 0-1

[Event "SUI-ch Bundesturnier TP-1 2022"]
[Site "Payerne"]
[Date "2022.05.26"]
[Round "2.2"]
[White "Laurent-Paoli, Pierre"]
[Black "Schmid, Christoph"]
[Result "1-0"]
[ECO "C12"]
[WhiteElo "2486"]
[BlackElo "2045"]
[Annotator "TA"]
[PlyCount "59"]
[EventDate "2022.05.26"]
[EventType "swiss"]
[EventCountry "SUI"]
[SourceTitle "playchess.com"]
[Source "ChessBase"]
[SourceQuality "1"]
[TimeControl "5400+30"]

{[%evp 14,59,0,0,29,24,26,34,176,180,180,180,209,208,208,197,208,199,191,183,198,212,254,238,240,225,223,211,171,140,141,9,8,8,214,189,219,210,200,186,242,248,240,251,435,336,562,585]} 1. e4 {[%emt 0:00:36]} e6 {[%emt 0:01:21]} 2. d4 {[%emt 0:00:05]} d5 {[%emt 0:00:18]} 3. Nc3 {[%emt 0:00:09]} Nf6 {[%emt 0:00:18]} 4. Bg5 {[%emt 0:00:05]} Bb4 {[%emt 0:00:29]} 5. e5 {[%emt 0:00:08]} h6 {[%emt 0:04:22]} 6. Bd2 {[%emt 0:00:36]} Bxc3 {[%emt 0:00:53]} 7. bxc3 {[%emt 0:00:06]} Ne4 {[%emt 0:00:12]} 8. Bc1 {[%emt 0:00:08]} c5 {[%emt 0:05:39] C12: French: Classical System: McCutcheon Variation.} 9. Ne2 {[%emt 0:00:08]} Qa5 {[%emt 0:10:36]} (9... Qh4 10. g3 Qd8 11. f3 $16) 10. f3 $1 {[%emt 0:17:03]} Nxc3 {[%emt 0:08:53]} ({Black should play} 10... Ng5 $1 $14) 11. Qd2 $18 {[%emt 0:00:05]} cxd4 {[%emt 0:00:08]} 12. Nxd4 {[%emt 0:00:05] Bb2 is the strong threat.} Qc7 {[%emt 0:00:41] [#]} 13. Bb2 $1 {[%emt 0:04:16]} Qxe5+ {[%emt 0:07:25]} 14. Kf2 {[%emt 0:03:36]} Na4 {[%emt 0:02:14]} 15. Bb5+ {[%emt 0:00:47]} Bd7 {[%emt 0:00:44]} 16. Bxa4 {[%emt 0:01:46]} Bxa4 {[%emt 0:02:29]} 17. Qb4 {[%emt 0:00:50][%csl LRa4,LRb7] [#]} b5 $146 {[%emt 0:20:45] [#] White must now prevent ...Na6.} ({Predecessor:} 17... Bd7 18. Nxe6 Qxe6 19. Rhe1 Nc6 20. Rxe6+ fxe6 21. Qg4 O-O-O 22. Qxg7 Rhg8 23. Qxh6 e5 {1-0 (40) Christiansen,J (2525)-Vovk,I (2294) Sweden 2019}) 18. Nxe6 $1 {[%emt 0:31:20][%mdl 512]} Nc6 {[%emt 0:08:21][%cal Of7e6] [#]} (18... Qxe6 $2 19. Rae1 Nd7 20. Rxe6+ fxe6 21. Re1 $18) 19. Qa3 $1 {[%emt 0:08:26]} Qb8 {[%emt 0:03:01]} 20. Nxg7+ {[%emt 0:01:43]} (20. Qe3 $2 fxe6 21. Qxe6+ Ne7 22. Bxg7 Rh7 23. Bxh6 Bxc2 $19) 20... Kd7 {[%emt 0:00:19]} 21. Rad1 {[%emt 0:06:42][%cal Ba1d1,Bd1d5,Bd5f5,Bf5f7,Bf7f6][%mdl 32]} ({Don't take} 21. Qc5 $6 Qb6 22. Qxb6 axb6 $16) 21... Qb6+ {[%emt 0:06:46]} 22. Qe3 {[%emt 0:00:55] Chess con chili. White is more active.} (22. Kg3 $16) 22... Qxe3+ $11 {[%emt 0:01:58]} 23. Kxe3 {[%emt 0:00:03]} Bxc2 $2 {[%emt 0:01:30]} (23... d4+ $11 24. Bxd4 Bxc2) 24. Rxd5+ $18 {[%emt 0:00:03]} Kc7 {[%emt 0:00:06]} 25. Rc1 {[%emt 0:02:23]} ({Don't do} 25. Rxb5 $6 Rab8) 25... Ba4 {[%emt 0:01:54]} 26. Rf5 $36 {[%emt 0:04:38][%mdl 2048] White has strong initiative.} Rac8 {[%emt 0:06:41]} (26... b4 {might work better.} 27. Ra5 (27. Rxf7+ Kb6 $18) 27... Kb6 28. Rxa4 a5) 27. Rxf7+ {[%emt 0:00:36]} Kb6 {[%emt 0:00:07]} 28. Rf6 {[%emt 0:01:24] Hoping for Nf5.} Rh7 $2 {[%emt 0:01:39]} (28... b4 29. Ne6 h5) 29. Nf5 {[%emt 0:00:45] Threatens to win with Bd4+.} h5 $2 {[%emt 0:00:22]} (29... b4 30. Bd4+ Kc7 31. Bxa7 Rd7) 30. Bd4+ {[%emt 0:00:30] Weighted Error Value: White=0.17 (very precise) /Black=0.47} 1-0